bitfinex/quotes_ETHUSD_20240821
["timestamp","ask_amount","ask_price","bid_price","bid_amount"]
[1724256094114,3.83863,2605.1,2604.6,0.13319823]
[1724256094415,3.83921,2604.7,2604.6,0.13319823]
[1724256094615,3.83877,2605.0,2604.5,3.83941]
[1724256094901,3.83877,2605.0,2604.6,0.13319823]
[1724256095976,3.83892,2604.9,2604.6,0.13319823]
[1724256096509,7.67791,2604.9,2604.4,3.83964]
[1724256097111,7.67791,2604.9,2604.5,0.13451793]
[1724256097512,3.83892,2604.9,2604.5,0.13451793]
[1724256097717,4.522762,2604.9,2604.5,0.13451793]
[1724256098051,3.83892,2604.9,2604.5,0.13451793]
[1724256098249,2.3412,2605.2,2604.5,0.13451793]
[1724256098546,5.3412,2605.2,2604.5,0.13451793]
[1724256099053,25.0712,2605.2,2604.5,0.13451793]
[1724256099204,3.83878,2605.0,2604.5,0.13451793]
[1724256099407,3.83893,2604.9,2604.5,0.13451793]
[1724256100048,3.83909,2604.8,2604.5,0.13451793]
[1724256100213,3.83936,2604.6,2604.2,2.3213]
[1724256100417,3.83936,2604.6,2604.3,0.13030896]
[1724256100641,3.83936,2604.6,2604.2,2.3213]
[1724256100963,3.83936,2604.6,2604.4,0.13020644]
[1724256101151,3.83922,2604.7,2604.3,0.13030896]
[1724256101347,3.83922,2604.7,2604.5,0.13014244]
[1724256101660,3.83922,2604.7,2604.6,0.13004475]
[1724256102273,3.83922,2604.7,2604.1,0.126045]
[1724256102274,3.83945,2604.6,2604.1,0.126045]
[1724256102417,3.83945,2604.6,2604.1,3.966125]
[1724256102822,3.83951,2604.5,2604.1,3.966125]
[1724256103022,3.83936,2604.6,2604.1,3.966125]
[1724256103329,3.83922,2604.7,2604.2,3.83984]
[1724256103564,7.67851,2604.7,2604.2,3.83984]
[1724256103767,7.67851,2604.7,2604.1,3.966035]
[1724256103768,3.83922,2604.7,2604.1,3.966035]
[1724256104059,2.2726,2605.0,2604.5,3.83947]
[1724256104060,6.11144,2605.0,2604.5,3.83947]
[1724256104467,6.11144,2605.0,2604.4,2.3698]
[1724256104468,3.83898,2604.9,2604.4,2.3698]
[1724256104973,6.11144,2605.0,2604.4,2.3698]
[1724256104974,3.83929,2604.7,2604.4,2.3698]
[1724256105276,3.83936,2604.6,2604.5,0.12619767]
[1724256105784,2.2726,2605.0,2604.1,0.126045]
[1724256105785,19.45,2604.7,2604.1,0.126045]
[1724256106062,3.8398,2604.3,2604.1,0.126045]
[1724256106219,3.83978,2604.4,2604.1,0.126045]
[1724256107223,3.83945,2604.6,2604.1,3.966125]
[1724256107571,3.83995,2604.2,2604.1,0.126045]
[1724256108360,3.83943,2604.6,2604.1,0.126045]
[1724256108568,23.28934,2604.7,2604.1,0.126045]
[1724256108721,19.45,2604.7,2604.1,0.126045]
[1724256108919,19.45,2604.7,2604.3,3.83979]
[1724256109124,19.45,2604.7,2604.2,3.83984]
[1724256109477,19.45,2604.7,2604.1,0.3780695]
[1724256109478,2.4458,2604.6,2604.1,0.126045]
[1724256109969,3.83995,2604.2,2604.1,0.126045]
[1724256110325,3.83965,2604.4,2604.1,0.126045]
[1724256110526,4.468191,2604.4,2604.1,0.126045]
[1724256110828,3.83965,2604.4,2604.1,0.126045]
[1724256111526,6.83898,2604.9,2604.1,3.966065]
[1724256111527,3.83917,2604.8,2604.1,3.966065]
[1724256111761,3.8389,2605.0,2604.5,3.83949]
[1724256111928,3.8389,2605.0,2604.5,7.67892]
[1724256112326,3.83929,2604.7,2604.2,2.3939]
[1724256112636,0.767756,2605.0,2604.1,0.126045]
[1724256112637,3.8398,2604.3,2604.1,0.126045]
[1724256113003,3.83974,2604.4,2604.1,0.126045]
[1724256113315,3.83995,2604.2,2604.1,0.126045]
[1724256114133,7.6799,2604.2,2604.1,0.126045]
[1724256116598,3.83995,2604.2,2604.1,0.126045]
[1724256116839,3.83977,2604.4,2604.1,0.126045]
[1724256117053,3.83972,2604.4,2604.1,0.126045]
[1724256117405,3.83995,2604.2,2604.1,0.126045]
[1724256117646,3.83995,2604.2,2604.1,0.24147052]
[1724256117843,3.83977,2604.4,2604.1,0.24147052]
[1724256118056,3.83952,2604.5,2604.1,0.126045]
[1724256118403,3.83945,2604.6,2604.2,2.52152298]
[1724256118599,3.83958,2604.5,2604.2,2.52152298]
[1724256120647,3.83958,2604.5,2604.2,0.11532298]
[1724256121758,26.8,2604.9,2604.2,3.95518298]
[1724256121759,11.18899,2604.9,2604.2,3.95518298]
[1724256121961,3.83907,2604.8,2604.3,0.4081228]
[1724256122300,3.83922,2604.7,2604.3,0.4081228]
[1724256122506,3.83909,2604.8,2604.4,2.48696559]
[1724256123046,3.83909,2604.8,2604.4,2.3719]
[1724256123247,3.83909,2604.8,2604.5,0.11496307]
[1724256124018,11.18899,2604.9,2604.5,0.11496307]
[1724256124219,3.83885,2605.0,2604.6,2.2664]
[1724256124421,11.18856,2605.2,2604.8,3.83892]
[1724256124422,7.35,2605.2,2604.8,3.83892]
[1724256124763,7.35,2605.2,2604.9,3.83878]
[1724256125105,7.35,2605.2,2605.0,0.11421282]
[1724256125553,7.35,2605.2,2604.8,2.2611]
[1724256125748,7.35,2605.2,2605.1,0.11394369]
[1724256125959,7.35,2605.2,2604.8,6.10008]
[1724256126123,7.35,2605.2,2605.1,0.11394369]
[1724256126312,7.35,2605.2,2604.8,3.277678]
[1724256126516,19.45,2605.4,2605.2,3.83847]
[1724256126824,9.8055,2605.9,2604.9,2.4263]
[1724256126825,3.83791,2605.6,2605.3,0.11373877]
[1724256127049,7.67592,2605.6,2604.9,6.26512]
[1724256127211,3.83791,2605.6,2605.0,4.57931816]
[1724256127653,3.83791,2605.6,2605.1,3.83861]
[1724256127958,3.83791,2605.6,2605.2,0.11384122]
[1724256128458,3.83791,2605.6,2605.0,0.626512]
[1724256128625,3.83791,2605.6,2605.1,0.11314019]
[1724256128831,3.83791,2605.6,2605.1,0.81361641]
[1724256129023,3.83764,2605.8,2605.2,3.83844]
[1724256129229,3.83764,2605.8,2605.3,0.07676107]
[1724256129447,7.35,2605.9,2605.2,2.3003]
[1724256129448,7.35,2605.9,2605.4,3.83807]
[1724256130107,7.35,2605.9,2605.5,0.11273038]
[1724256131625,3.83661,2606.5,2605.6,6.17907]
[1724256131626,3.83677,2606.4,2605.6,6.17907]
[1724256131826,3.83677,2606.4,2605.8,3.8375]
[1724256132041,7.35,2606.5,2606.1,2.4189]
[1724256132245,7.35,2606.5,2606.2,0.11201353]
[1724256132456,19.45,2606.6,2606.2,0.11201353]
[1724256132611,21.395,2606.6,2606.1,2.4189]
[1724256132812,3.83656,2606.5,2606.1,2.4189]
[1724256133127,3.83725,2606.1,2605.6,2.348]
[1724256133330,4.221045,2606.0,2605.6,2.348]
[1724256133529,3.83732,2606.0,2605.6,2.348]
[1724256134472,3.83751,2605.9,2605.6,2.348]
[1724256135319,3.83762,2605.8,2605.3,2.4358]
[1724256135665,3.83762,2605.8,2605.4,0.11253822]
[1724256136262,7.67474,2606.0,2605.4,0.11253822]
[1724256136462,7.67471,2606.0,2605.4,3.95069822]
[1724256136671,3.83732,2606.0,2605.4,8.81119804]
[1724256136839,3.83732,2606.0,2605.4,4.97310804]
[1724256137038,3.83732,2606.0,2605.4,4.86056982]
[1724256137227,7.6747,2606.0,2605.5,0.11243578]
[1724256137434,3.83745,2605.9,2605.5,0.11243578]
[1724256137784,3.8376,2605.8,2605.3,6.27412]
[1724256137943,3.8376,2605.8,2605.6,0.11233335]
[1724256138265,3.8376,2605.8,2605.3,2.4358]
[1724256138434,3.8376,2605.8,2605.4,0.11253822]
[1724256139262,7.67475,2606.0,2605.4,3.95069822]
[1724256139440,5.339835,2606.0,2605.4,3.95069822]
[1724256139648,3.83759,2605.8,2605.4,0.11253822]
[1724256141160,3.875075,2606.0,2605.4,0.11253822]
[1724256141491,3.83818,2605.4,2604.9,6.30348]
[1724256141777,3.83818,2605.4,2604.9,6.30361]
[1724256142084,3.83855,2605.2,2605.0,0.11273423]
[1724256142599,3.8387,2605.1,2604.6,6.19247]
[1724256142905,3.83855,2605.2,2604.6,2.3532]
[1724256142906,3.83877,2605.0,2604.6,2.3532]
[1724256143491,3.83877,2605.0,2604.1,3.966125]
[1724256143492,3.83894,2604.9,2604.1,3.966125]
[1724256143692,3.83936,2604.6,2604.1,0.126045]
[1724256143895,3.83966,2604.4,2604.1,0.126045]
[1724256146023,3.83991,2604.3,2604.1,0.126045]
[1724256146243,3.83995,2604.2,2604.1,0.126045]
[1724256146543,9.9723,2604.2,2604.1,0.126045]
[1724256146845,12.9723,2604.2,2604.1,0.126045]
[1724256148301,16.81225,2604.2,2604.1,0.126045]
[1724256148546,17.27416133,2604.2,2604.1,0.126045]
[1724256149226,36.79416133,2604.2,2604.1,0.126045]
[1724256150246,40.63411133,2604.2,2604.1,0.126045]
[1724256150455,41.18411133,2604.2,2604.1,0.126045]
[1724256150605,41.58424321,2604.2,2604.1,0.126045]
[1724256151047,41.58424321,2604.2,2601.8,6.127]
[1724256151048,3.84219,2602.7,2602.3,2.4768]
[1724256151230,7.68448,2602.7,2602.3,3.108772]
[1724256151435,3.84219,2602.7,2602.4,0.11755519]
[1724256151743,3.84219,2602.7,2602.3,2.4768]
[1724256151896,3.8424,2602.6,2602.3,2.4768]
[1724256152097,3.84256,2602.5,2601.9,2.4265]
[1724256152362,6.30617,2602.4,2601.9,0.626992]
[1724256152552,3.84291,2602.2,2601.6,3.84372]
[1724256152704,7.68537,2602.4,2601.6,3.84368]
[1724256152908,3.84267,2602.4,2601.8,6.30478]
[1724256153100,3.84267,2602.4,2601.8,3.84348]
[1724256153323,3.84267,2602.4,2601.8,4.612196]
[1724256153757,3.84277,2602.3,2601.8,4.612196]
[1724256154127,3.84237,2602.6,2601.8,4.612096]
[1724256154321,3.84249,2602.5,2602.1,2.4551]
[1724256154626,3.84237,2602.6,2602.1,2.4551]
[1724256155130,3.84237,2602.6,2601.5,3.969905]
[1724256155131,2.427,2602.3,2601.5,0.126045]
[1724256155356,3.84378,2601.6,2601.5,0.126045]
[1724256155558,2.427,2602.3,2601.5,0.126045]
[1724256155559,3.8433,2602.0,2601.5,0.126045]
[1724256155771,3.843,2602.2,2601.6,2.4551]
[1724256155953,3.84265,2602.4,2601.7,0.6424945]
[1724256156133,3.84265,2602.4,2601.8,3.8434]
[1724256156334,7.68534,2602.4,2601.8,3.8434]
[1724256156553,3.84265,2602.4,2601.8,3.8434]
[1724256156754,3.84265,2602.4,2601.9,3.84331]
[1724256157024,3.84265,2602.4,2601.6,2.4551]
[1724256157025,7.68535,2602.4,2601.8,3.84335]
[1724256157224,3.84277,2602.3,2601.8,4.857566]
[1724256157766,3.84277,2602.3,2601.8,1.014216]
[1724256157968,3.84291,2602.2,2601.8,1.014216]
[1724256158274,3.0,2602.8,2601.9,0.07686053]
[1724256158458,3.84254,2602.5,2602.1,2.4806]
[1724256158656,3.84254,2602.5,2602.2,0.11138344]
[1724256158857,3.0,2602.9,2602.2,0.11138344]
[1724256158858,7.6857,2602.3,2602.2,0.11138344]
[1724256159039,3.84308,2602.1,2601.8,2.3682]
[1724256159244,3.8429,2602.2,2601.8,2.60502]
[1724256159440,3.84305,2602.1,2601.9,0.11165368]
[1724256159679,7.68638,2602.0,2601.9,0.11165368]
[1724256159826,3.84296,2602.2,2601.6,3.84365]
[1724256160026,3.84296,2602.2,2601.5,2.494245]
[1724256160226,3.84314,2602.1,2601.6,0.11202817]
[1724256160577,23.36276,2602.3,2601.7,3.8436]
[1724256160729,23.36276,2602.3,2601.8,3.84347]
[1724256160921,3.84255,2602.5,2601.9,3.84331]
[1724256161224,3.84231,2602.6,2602.0,2.2727]
[1724256161540,14.377,2602.9,2602.0,2.884295]
[1724256161541,3.84247,2602.5,2602.0,2.884295]
[1724256161758,7.68503,2602.5,2602.0,2.884295]
[1724256161926,7.68503,2602.5,2602.1,0.11150982]
[1724256162125,3.84247,2602.5,2602.1,0.11150982]
[1724256162322,3.84247,2602.5,2602.1,0.7954153]
[1724256162760,3.84247,2602.5,2602.1,0.68390548]
[1724256162956,3.84247,2602.5,2602.2,0.11140712]
[1724256163174,3.84269,2602.4,2602.2,0.11140712]
[1724256163338,3.84275,2602.3,2602.2,0.11140712]
[1724256163542,3.84275,2602.3,2602.0,2.2727]
[1724256163762,3.84275,2602.3,2602.2,0.11140712]
[1724256164073,3.84261,2602.4,2602.0,2.2727]
[1724256164273,3.84261,2602.4,2602.1,0.11150982]
[1724256164890,7.68506,2602.5,2602.1,0.11150982]
[1724256165075,3.84247,2602.5,2602.1,0.11150982]
[1724256165276,3.84261,2602.4,2602.1,0.11150982]
[1724256165680,3.84276,2602.3,2602.1,0.11150982]
[1724256165881,7.68565,2602.3,2602.1,0.11150982]
[1724256166029,3.84276,2602.3,2602.1,0.11150982]
[1724256166329,3.8429,2602.2,2602.1,0.11150982]
[1724256166847,7.6858,2602.2,2602.1,0.11150982]
[1724256167045,4.61148,2602.2,2601.5,0.126045]
[1724256167247,3.84356,2601.8,2601.5,0.126045]
[1724256167444,3.84356,2601.8,2601.6,0.11205184]
[1724256167646,0.76858,2602.2,2601.6,3.95580184]
[1724256167942,3.84322,2602.0,2601.6,0.11205184]
[1724256168174,3.84343,2601.9,2601.6,0.11205184]
[1724256168351,3.84305,2602.1,2601.6,3.95580184]
[1724256168531,3.84305,2602.1,2601.6,8.83956352]
[1724256168739,3.84305,2602.1,2601.6,4.99581352]
[1724256169085,3.84321,2602.0,2601.6,3.95576184]
[1724256169266,3.84321,2602.0,2601.6,0.11205184]
[1724256169672,3.84298,2602.2,2601.6,3.95583184]
[1724256170393,3.84314,2602.1,2601.6,3.95575184]
[1724256170541,3.84314,2602.1,2601.6,8.83951052]
[1724256170741,6.8424,2602.6,2602.0,3.84312]
[1724256170974,3.8424,2602.6,2602.1,3.84295]
[1724256171285,19.52,2602.8,2602.1,0.11163292]
[1724256171482,19.52,2602.8,2601.9,6.20912]
[1724256171483,3.84286,2602.3,2601.9,2.3659]
[1724256171670,3.84269,2602.4,2602.0,0.11173563]
[1724256173054,3.8424,2602.6,2602.0,3.95489563]
[1724256173259,3.84246,2602.5,2602.0,3.95489563]
[1724256173560,3.8423,2602.7,2602.2,3.84289]
[1724256173768,3.84229,2602.7,2602.2,3.84289]
[1724256173997,3.84201,2602.8,2602.3,3.95409753]
[1724256174213,30.76194,2602.9,2602.3,3.95409753]
[1724256174214,3.84216,2602.7,2602.3,0.11142753]
[1724256174338,3.84216,2602.7,2602.4,2.4095]
[1724256175093,3.84232,2602.6,2602.4,2.4095]
[1724256175793,3.84232,2602.6,2602.1,2.4095]
[1724256176164,3.84286,2602.3,2602.2,0.11153022]
[1724256176693,3.84286,2602.3,2602.1,2.4095]
[1724256176871,3.84286,2602.3,2602.2,0.11143552]
[1724256177408,3.8426,2602.5,2602.2,0.11143552]
[1724256177691,3.84256,2602.5,2602.1,2.4095]
[1724256177995,3.84256,2602.5,2602.2,0.11143552]
[1724256178363,3.84256,2602.5,2602.1,2.4095]
[1724256178900,23.36244,2602.6,2602.2,0.11143552]
[1724256179039,3.84247,2602.5,2602.2,0.11143552]
[1724256179472,7.68502,2602.5,2602.2,0.11143552]
[1724256179789,7.68501,2602.5,2602.2,0.11143552]
[1724256180034,3.84268,2602.4,2602.2,0.11143552]
[1724256180146,3.84275,2602.3,2602.2,0.11143552]
[1724256180337,3.84275,2602.3,2601.8,6.26588]
[1724256180542,3.84275,2602.3,2602.2,0.11143552]
[1724256180742,3.84275,2602.3,2601.8,2.4225]
[1724256180743,3.84334,2601.9,2601.8,2.4225]
[1724256180967,3.84334,2601.9,2601.5,2.466845]
[1724256181174,3.84358,2601.8,2601.5,2.466845]
[1724256181701,4.227125,2602.3,2601.5,2.466845]
[1724256181702,7.68738,2601.7,2601.5,0.126045]
[1724256181850,3.84347,2601.9,2601.5,0.126045]
[1724256182187,3.84364,2601.7,2601.5,0.126045]
[1724256182705,3.84378,2601.6,2601.5,0.126045]
[1724256182997,2.3266,2602.0,2601.5,0.126045]
[1724256182998,3.84365,2601.7,2601.5,0.126045]
[1724256183288,7.6874,2601.7,2601.5,0.126045]
[1724256183588,3.84365,2601.7,2601.5,0.126045]
[1724256184845,3.0,2602.1,2601.5,0.126045]
[1724256184846,7.68756,2601.6,2601.5,0.126045]
[1724256185045,8.456316,2601.6,2601.5,0.126045]
[1724256185600,4.612536,2601.6,2601.5,0.126045]
[1724256185757,3.84378,2601.6,2601.5,0.126045]
[1724256186293,7.68756,2601.6,2601.5,0.126045]
[1724256186886,3.84326,2602.0,2601.5,0.126045]
[1724256187118,7.68653,2602.0,2601.6,2.3085]
[1724256187388,3.84326,2602.0,2601.6,2.3085]
[1724256187709,3.84326,2602.0,2601.7,0.11209591]
[1724256187874,7.68537,2602.4,2601.8,3.84335]
[1724256188174,3.84268,2602.4,2601.9,0.11189046]
[1724256188522,3.84268,2602.4,2601.9,0.77987605]
[1724256188751,3.84291,2602.2,2602.0,0.11178774]
[1724256188923,3.84304,2602.1,2602.0,0.11178774]
[1724256189124,3.84304,2602.1,2601.6,6.7800365]
[1724256189428,3.84304,2602.1,2602.0,0.11201974]
[1724256189637,3.84271,2602.4,2601.7,3.84364]
[1724256189836,3.84304,2602.1,2602.0,0.11201974]
[1724256190067,3.84304,2602.1,2601.6,2.3085]
[1724256190220,3.84304,2602.1,2602.0,0.11201974]
[1724256190421,3.84304,2602.1,2601.6,6.15228]
[1724256190422,3.84304,2602.1,2601.7,3.84363]
[1724256190621,3.84304,2602.1,2601.6,2.3085]
[1724256190622,3.84304,2602.1,2602.0,0.11201974]
[1724256190929,3.84291,2602.2,2602.0,0.11201974]
[1724256191152,3.84271,2602.4,2601.7,3.84356]
[1724256191390,1.539764,2604.7,2602.1,3.95484704]
[1724256191391,2.4905,2603.0,2602.1,3.95484704]
[1724256191520,3.84211,2602.8,2602.1,3.84293]
[1724256191719,3.84232,2602.6,2602.2,0.11181434]
[1724256192121,3.84262,2602.4,2602.2,0.11181434]
[1724256192320,3.84262,2602.4,2601.8,2.4078]
[1724256192321,3.84286,2602.3,2601.8,2.4078]
[1724256192730,3.84302,2602.2,2601.8,2.4078]
[1724256193075,3.84302,2602.2,2601.9,0.11184781]
[1724256193076,3.84307,2602.1,2601.9,0.11184781]
[1724256193731,7.68605,2602.2,2602.0,0.11174509]
[1724256193938,3.84302,2602.2,2602.0,0.11174509]
[1724256194153,3.84304,2602.1,2601.5,6.411475]
[1724256194341,7.68603,2602.2,2601.6,3.84368]
[1724256194522,3.84301,2602.2,2601.7,3.84362]
[1724256194867,3.84301,2602.2,2601.8,0.11196473]
[1724256195614,3.84268,2602.4,2601.8,0.11196473]
[1724256195856,3.8429,2602.2,2601.8,0.11196473]
[1724256196017,3.8429,2602.2,2601.8,4.3509952]
[1724256196668,3.84247,2602.5,2602.0,3.84311]
[1724256196970,3.84242,2602.6,2602.1,0.11169446]
[1724256197155,3.84261,2602.4,2602.1,0.11169446]
[1724256197677,3.84261,2602.4,2602.0,3.84319]
[1724256197965,3.84241,2602.6,2602.1,0.73066452]
[1724256198324,11.24208,2602.8,2602.2,3.84275]
[1724256198520,11.24208,2602.8,2602.4,2.2669]
[1724256198521,7.4,2602.8,2602.4,2.2669]
[1724256198725,7.4,2602.8,2602.4,6.10943]
[1724256198999,7.4,2602.8,2602.4,2.2669]
[1724256199000,3.84216,2602.7,2602.4,2.2669]
[1724256199176,3.84216,2602.7,2602.1,3.84294]
[1724256199177,11.24201,2602.8,2602.5,0.11107063]
[1724256199464,15.08413,2602.8,2602.2,3.84289]
[1724256199766,3.84227,2602.7,2602.3,0.11127599]
[1724256200215,11.24201,2602.8,2602.2,4.855053]
[1724256200419,11.24201,2602.8,2602.4,0.11110703]
[1724256200650,3.8426,2602.4,2602.3,0.11120971]
[1724256200849,3.8428,2602.3,2601.8,2.4473]
[1724256201061,3.84291,2602.2,2601.8,2.4473]
[1724256201219,3.84291,2602.2,2601.6,3.84378]
[1724256201220,4.227351,2602.1,2601.6,2.3539]
[1724256201420,3.8433,2602.0,2601.6,2.3539]
[1724256201663,3.84329,2602.0,2601.5,0.126045]
[1724256201864,2.4347,2602.2,2601.5,0.126045]
[1724256201865,3.84378,2601.6,2601.5,0.126045]
[1724256202070,4.228158,2601.6,2601.5,0.126045]
[1724256202223,3.84378,2601.6,2601.5,0.126045]
[1724256202422,3.84366,2601.7,2601.5,0.126045]
[1724256202629,3.84338,2601.9,2601.5,0.126045]
[1724256202854,19.52,2602.1,2601.5,0.126045]
[1724256203125,3.84374,2601.7,2601.5,0.126045]
[1724256203563,3.84345,2601.9,2601.5,0.126045]
[1724256203987,7.68691,2601.9,2601.5,0.126045]
[1724256204161,3.84352,2601.8,2601.5,0.126045]
[1724256204323,3.84367,2601.7,2601.5,0.126045]
[1724256204523,3.84345,2601.9,2601.5,0.126045]
[1724256205271,23.3631,2602.1,2601.6,2.2567]
[1724256205424,3.8432,2602.0,2601.6,2.2567]
[1724256205619,3.84338,2601.9,2601.6,2.2567]
[1724256206559,3.84338,2601.9,2601.5,0.126045]
[1724256206560,3.84349,2601.8,2601.5,0.126045]
[1724256206830,3.84349,2601.8,2601.7,0.11209113]
[1724256207369,3.84378,2601.6,2601.5,0.126045]
[1724256207740,3.84349,2601.8,2601.5,0.126045]
[1724256207939,3.84349,2601.8,2601.5,0.23837003]
[1724256208129,3.84364,2601.7,2601.5,0.23837003]
[1724256208863,7.68756,2601.6,2601.5,0.23837003]
[1724256209384,27.20756,2601.6,2601.5,0.126045]
[1724256209524,36.50884,2601.6,2601.5,0.126045]
[1724256209927,40.35262,2601.6,2601.5,0.126045]
[1724256211323,40.90262,2601.6,2601.5,5e-06]
[1724256211565,42.82212815,2601.6,2601.5,5e-06]
[1724256211930,42.82212815,2601.6,2599.4,3.19352406]
[1724256211931,46.66590815,2601.6,2599.8,2.2582]
[1724256212242,46.66590815,2601.6,2599.3,4.77955394]
[1724256212243,3.84636,2599.9,2599.5,2.2582]
[1724256212906,3.84636,2599.9,2599.6,0.11490872]
[1724256213213,7.69327,2599.7,2599.1,3.84739]
[1724256213389,3.84659,2599.7,2599.1,3.84739]
[1724256213593,3.84647,2599.8,2599.2,4.231969]
[1724256213776,3.84664,2599.7,2599.2,0.384739]
[1724256214130,3.84664,2599.7,2599.2,4.232039]
[1724256214406,7.69274,2599.9,2599.4,2.2577]
[1724256214612,7.69275,2599.9,2599.4,2.9066549]
[1724256214808,3.84633,2599.9,2599.4,2.9066549]
[1724256214963,7.69276,2599.9,2599.4,2.9066549]
[1724256215158,3.84633,2599.9,2599.4,2.9066549]
[1724256215360,7.69222,2600.1,2599.5,1.06008449]
[1724256215584,22.52,2600.2,2599.5,1.06008449]
[1724256215585,19.52,2600.2,2599.5,1.06008449]
[1724256215864,3.84552,2600.5,2599.9,3.84621]
[1724256216055,3.84552,2600.5,2599.9,6.30821]
[1724256216254,3.84558,2600.4,2599.9,6.30821]
[1724256216499,3.84558,2600.4,2599.9,3.477471]
[1724256216813,3.84573,2600.3,2599.9,3.477471]
[1724256216964,19.52,2600.6,2599.9,3.477471]
[1724256217312,3.8458,2600.3,2599.9,3.477471]
[1724256218209,3.8458,2600.3,2599.9,2.462]
[1724256218503,3.8459,2600.2,2599.7,3.84649]
[1724256218704,3.84639,2599.9,2599.3,3.84708]
[1724256218907,3.84639,2599.9,2599.1,3.84743]
[1724256218908,7.4,2600.2,2599.1,2.2697]
[1724256219063,7.4,2600.2,2599.9,2.2697]
[1724256219281,23.36557,2600.4,2599.9,2.2697]
[1724256219480,3.8452,2600.7,2600.2,3.84585]
[1724256219937,3.8452,2600.7,2600.0,3.84606]
[1724256220235,3.84542,2600.5,2600.1,0.611576]
[1724256220412,3.8452,2600.7,2600.1,0.611576]
[1724256220721,3.8452,2600.7,2600.2,3.84573]
[1724256220932,3.8452,2600.7,2600.1,0.611576]
[1724256221332,3.8452,2600.7,2600.1,4.457556]
[1724256221333,3.84528,2600.6,2600.1,4.457556]
[1724256221622,3.84542,2600.5,2600.2,0.8303596]
[1724256221836,3.84542,2600.5,2600.1,3.84598]
[1724256222192,3.8452,2600.7,2600.1,3.84598]
[1724256222391,7.69042,2600.7,2600.1,3.8459]
[1724256222742,3.84529,2600.6,2600.1,3.8459]
[1724256223232,3.8452,2600.7,2600.1,3.84588]
[1724256223233,7.69041,2600.7,2600.1,3.84588]
[1724256223443,3.84527,2600.6,2600.2,0.384588]
[1724256223642,7.69044,2600.7,2600.2,0.384588]
[1724256223940,3.84536,2600.6,2599.9,6.11591]
[1724256224245,3.0,2601.1,2599.9,2.2697]
[1724256224405,3.84489,2600.9,2600.4,6.17785]
[1724256224604,3.84489,2600.9,2600.4,2.3323]
[1724256224809,3.84498,2600.8,2600.4,2.3323]
[1724256225027,3.84498,2600.8,2600.5,0.11507773]
[1724256225589,13.61585,2601.3,2600.5,0.11507773]
[1724256225590,7.69052,2600.6,2600.5,0.11507773]
[1724256225747,6.21432,2600.7,2599.7,2.2547]
[1724256225916,3.84623,2600.0,2599.7,2.2547]
[1724256226444,3.84595,2600.2,2599.7,6.10121]
[1724256226609,3.84594,2600.2,2599.7,2.864821]
[1724256226995,3.84594,2600.2,2599.7,6.711401]
[1724256227199,3.84566,2600.4,2599.8,3.84643]
[1724256227395,3.84566,2600.4,2599.9,3.84629]
[1724256227639,3.84566,2600.4,2599.9,4.9020441]
[1724256227840,3.84571,2600.3,2599.9,1.0557541]
[1724256229211,21.8825,2600.5,2599.7,2.2547]
[1724256229429,3.84573,2600.3,2599.8,2.4146]
[1724256229633,3.84579,2600.3,2599.8,6.26095]
[1724256229847,3.84594,2600.2,2599.8,2.4146]
[1724256230252,3.84594,2600.2,2599.4,2.4146]
[1724256230253,3.8467,2599.7,2599.4,2.4146]
[1724256230473,3.84668,2599.7,2599.2,3.84731]
[1724256230674,3.84668,2599.7,2599.2,3.84726]
[1724256230855,3.84668,2599.7,2599.3,3.84717]
[1724256231036,3.84637,2599.9,2599.3,3.84717]
[1724256231242,7.69279,2599.9,2599.3,3.84717]
[1724256231840,3.84613,2600.1,2599.5,2.2971]
[1724256232030,3.8463,2599.9,2599.5,2.2971]
[1724256233274,3.84611,2600.1,2599.5,2.2971]
[1724256233275,3.8461,2600.1,2599.6,3.84665]
[1724256233474,3.8463,2599.9,2599.5,2.2971]
[1724256233829,3.84628,2600.0,2599.5,2.2971]
[1724256234168,7.69256,2600.0,2599.5,6.14397]
[1724256234373,3.84634,2599.9,2599.5,2.2971]
[1724256234675,3.84647,2599.8,2599.5,2.2971]
[1724256235571,21.472,2600.2,2599.5,6.8352313]
[1724256235572,25.31796,2600.2,2599.5,6.8352313]
[1724256235746,23.36596,2600.2,2599.5,6.8352213]
[1724256235943,23.36596,2600.2,2599.8,3.84644]
[1724256236256,3.84566,2600.4,2600.0,3.84614]
[1724256236663,3.84571,2600.3,2599.8,3.84636]
[1724256236900,3.84571,2600.3,2599.8,7.69273]
[1724256237205,3.84585,2600.2,2599.6,3.84662]
[1724256237344,7.69182,2600.2,2599.9,0.11577074]
[1724256237549,7.69183,2600.2,2599.9,0.11577074]
[1724256237746,7.69183,2600.2,2600.0,0.1158623]
[1724256237947,3.846,2600.1,2600.0,0.1158623]
[1724256238163,3.84616,2600.0,2599.5,2.2971]
[1724256238399,3.84616,2600.0,2599.5,2.911499]
[1724256238586,3.84616,2600.0,2599.5,6.14385]
[1724256238755,3.84616,2600.0,2599.5,9.99067]
[1724256239302,3.84616,2600.0,2599.6,3.84671]
[1724256239447,3.846,2600.1,2599.6,3.84671]
[1724256240197,3.84637,2599.9,2599.7,0.11617094]
[1724256240353,3.84637,2599.9,2599.3,3.84707]
[1724256240354,3.84644,2599.8,2599.3,3.84707]
[1724256240697,3.84688,2599.6,2599.4,0.11647965]
[1724256240993,3.84654,2599.8,2599.1,2.4477]
[1724256241198,3.84654,2599.8,2599.4,3.84702]
[1724256241405,3.84654,2599.8,2599.3,3.84718]
[1724256241406,3.84653,2599.8,2599.3,3.84718]
[1724256241612,19.66,2600.2,2599.7,7.69303]
[1724256241749,5.445,2600.5,2599.8,3.84636]